Cogmind - Beta 14 @@@ ROGUE MODE // 2024.11.09 @ 13:25:13 Player: Fangrelle Result: Destroyed by W7-FEU(R) with Subdweller Shrapnel Launcher Performance ------------- Evolutions (0) 0 Regions Visited (2) 400 Robots Destroyed (49) 245 Value Destroyed (1191) 1191 Prototype IDs (1) 20 Alien Tech Used (0) 0 Bonus (34) 34 TOTAL SCORE: 1890 Bonus ------- High Alert Combat Kills 34 Cogmind --------- Core Integrity 0/250 Matter 280/300 Energy 65/100 System Corruption 0% Temperature Cool (0) Movement Rolling (120) Ox2 Location -10/Subcaves Parts ------- > --- POWER (1) -------- Subdweller Power Source > --- PROPULSION (2) --- Wheel Compact Wheel > --- UTILITY (2) ------ High-capacity Storage Unit Makeshift Light Armor Plating > --- WEAPON (2) ------- Subdweller Beam Cannon Grenade Launcher > --- INVENTORY (20) --- Ion Engine Subdweller Power Source Subdweller Monowheel Improved Flight Unit Improved Flight Unit Subdweller Optics Subdweller Optics Signal Interpreter Signal Interpreter Signal Interpreter Improved Terrain Scanner Seismic Detector Scrap Shield Hacking Suite Tractor Beam Battle Rifle Datajack Piercing Trap Piercing Trap Peak State ------------ > --- POWER ------------ Subdweller Power Source > --- PROPULSION ------- Compact Wheel > --- UTILITY ---------- High-capacity Storage Unit Makeshift Light Armor Plating > --- WEAPON ----------- Riot Gun Battle Rifle > --- INVENTORY -------- Subdweller Power Source Improved Flight Unit Improved Flight Unit Subdweller Optics Signal Interpreter Signal Interpreter Signal Interpreter Improved Terrain Scanner Seismic Detector Scrap Shield Hacking Suite Tractor Beam Subdweller Beam Cannon Grenade Launcher Datajack Piercing Trap Piercing Trap [Rating: 16] Favorites ----------- Power Ion Engine Engine Ion Engine Propulsion Light Treads Treads Light Treads Wheel Compact Wheel Flight Unit Improved Flight Unit Utility High-capacity Storage Unit Device Seismic Detector Storage High-capacity Storage Unit Protection Makeshift Light Armor Plating Weapon Heavy EM Pulse Gun Energy Gun Heavy EM Pulse Gun Energy Cannon Subdweller Beam Cannon Ballistic Gun Battle Rifle Launcher Grenade Launcher Special Melee Weapon Datajack Build | -11 -10 -10 ------- Run | Yrd Mat Sub Slots Evolved . | . . . Power . | . . . Propulsion . | . . . Utility . | . . . Weapon . | . . . Parts Attached 44 | 7 19 18 Power 5 | 1 1 3 Engine 5 | 1 1 3 Core . | . . . Reactor . | . . . Propulsion 10 | 2 5 3 Treads 5 | 2 3 . Leg . | . . . Wheel 3 | . . 3 Hover . | . . . Flight 2 | . 2 . Utility 8 | 2 4 2 Device 3 | 1 1 1 Storage 3 | 1 2 . Processor . | . . . Hackware . | . . . Protection 2 | . 1 1 Artifact . | . . . Weapon 21 | 2 9 10 Energy Gun 7 | . 5 2 Energy Cannon 1 | . . 1 Ballistic Gun 6 | 2 . 4 Ballistic Cannon . | . . . Launcher 6 | . 4 2 Special Weapon . | . . . Impact Weapon . | . . . Slashing Weapon . | . . . Piercing Weapon . | . . . Special Melee Weapon 1 | . . 1 Unidentified Prototypes 1 | . 1 . Parts Lost 11 | . 2 9 Power 2 | . . 2 Propulsion 3 | . . 3 Utility 1 | . 1 . Weapon 5 | . 1 4 Highest Loss Streak 6 | . 2 6 To Critical Strikes . | . . . Average Slot Usage (%) 91 | . 93 90 Engine 13 | . 14 13 Treads 16 | . 27 . Wheel 8 | . . 19 Device 4 | . 5 3 Storage 15 | . 16 14 Protection 5 | . 2 10 Energy Gun 9 | . 12 5 Energy Cannon 2 | . . 6 Ballistic Gun 10 | . 7 14 Launcher 3 | . 4 1 Peak Build Rating 16 | 9 11 16 Average Rating 11 | 5 8 14 On Entrance 6 | . 9 10 Naked Turns . | . . . Heaviest Build 71 | 15 71 59 Greatest Support 40 | 40 40 40 Greatest Overweight (x) 10 | . 10 3 Average Overweight (x) 1 | . . 2 Largest Inventory Capacity 20 | 8 20 20 Average Capacity 16 | 7 14 20 Most Carried 20 | 4 16 20 Average Carried 14 | 2 12 16 Final Capacity 20 | 8 20 20 Final Carried 20 | 4 15 20 Class Distribution -------------------- 88% | Mutant 11% | Derelict-Mutant Dominant Class ---------------- Mutant | -10/Materials Mutant | -10/Subcaves Resources | -11 -10 -10 ----------- Run | Yrd Mat Sub Matter Collected 1065 | 324 442 299 Remotely . | . . . Salvage Created 1677 | 163 1033 481 Parts 108 | 8 69 31 Haulers Intercepted 2 | . 2 . Recyclers Shooed 1 | 1 . . Parts Field Recycled . | . . . Retrieved Matter . | . . . Parts Self-Destructed 12 | . . 12 Prevented . | . . . Kills | -11 -10 -10 ------- Run | Yrd Mat Sub Combat Hostiles Destroyed 31 | . 21 10 Guns 17 | . 10 7 Cannons 2 | . . 2 AOE 12 | . 11 1 Classes Destroyed 12 | 2 8 2 Worker 3 | . 3 . Builder 1 | . 1 . Tunneler 3 | 3 . . Hauler 2 | . 2 . Recycler 3 | 1 2 . Mechanic 1 | . 1 . Operator 2 | . 2 . Watcher 3 | . 3 . Swarmer 6 | . 6 . Grunt 17 | . 15 2 Cobbler 2 | . . 2 Subdweller 8 | . . 8 Best Kill Streak 7 | 4 7 2 Combat Bots Only 6 | . 6 2 Max Kills in Single Turn 4 | 1 4 1 Gunslinging . | . . . Exploded 3 | . 3 1 Melee . | . . . Uniques/NPCs Destroyed . | . . . Combat | -11 -10 -10 -------- Run | Yrd Mat Sub Hostile Shots Fired 115 | . 57 58 Missed 37 | . 16 21 Damage Taken 1438 | . 593 845 Core 265 | . 40 225 Absorbed by Shields . | . . . Core Remaining (%) 100 | 100 . . Volleys Fired 122 | 9 59 54 Largest 2 | 2 2 2 Hottest 110 | 40 90 110 Shots Fired 224 | 18 106 100 Gun 184 | 18 87 79 Cannon 19 | . . 19 Launcher 21 | . 19 2 Special . | . . . Kinetic 99 | 18 25 56 Thermal 19 | . . 19 Explosive 21 | . 19 2 Electromagnetic 85 | . 62 23 Robot Hit Streak 16 | 4 16 13 Robot Miss Streak 4 | 3 4 3 Penetration Max . | . . . Secondary Targets 3 | . 2 1 Max Gunslinging Chain 1 | . 1 1 Shots Hit Robots 144 | 9 60 75 Core Hits 72 | 5 46 21 Critical Kills . | . . . Critical Parts Destroyed 1 | . . 1 Critical Strikes 3 | . 1 2 Destroy 1 | . . 1 Corrupt 2 | . 1 1 Melee Attacks 5 | . . 5 Impact . | . . . Slashing . | . . . Piercing . | . . . Sneak Attacks . | . . . Combat Hostiles . | . . . Follow-up Attacks . | . . . Damage Inflicted 3236 | 126 1778 1332 Guns 1866 | 126 797 943 Cannons 167 | . . 167 Explosions 1201 | . 979 222 Melee . | . . . Ramming 2 | . 2 . Kinetic 965 | 126 167 672 Thermal 358 | . 107 251 Explosive 1010 | . 872 138 Electromagnetic 901 | . 630 271 Impact . | . . . Slashing . | . . . Piercing . | . . . Highest Corruption . | . . . Average Corruption . | . . . Corruption Purged . | . . . Corruption Blocked . | . . . Overload Shots . | . . . Overflow Damage 7 | . 7 . Projectiles . | . . . Explosions 7 | . 7 . Melee . | . . . Knockbacks . | . . . Impact . | . . . Kinetic . | . . . Secondary . | . . . Self-Inflicted Damage 191 | . 151 40 Shots 4 | . 3 1 Rammed 1 | . 1 . Targets Rammed 1 | . 1 . Kicked . | . . . Crushed . | . . . Highest Temperature 248 | . 248 83 Average Temperature 57 | . 69 21 Received Heat Transfer 369 | . 162 207 Effects 1 | . 1 . Energy Bleed 1 | . 1 . Siege Activations . | . . . Robots Corrupted . | . . . Combat Hostiles . | . . . Parts Fried . | . . . Impact Corruptions . | . . . Robots Melted . | . . . Combat Hostiles . | . . . Parts Melted . | . . . Heat Transferred 472 | . 150 322 Parts Sabotaged . | . . . Parts Stolen . | . . . Parts Stripped . | . . . Power Chain Reactions 5 | . 3 2 Alert | -11 -10 -10 ------- Run | Yrd Mat Sub Peak Influence 570 | 20 570 . Initial 13 | . 13 . Average 287 | 6 302 . Maximum Alert Level 2 | . 2 . Low Security (%) 35 | 100 31 . Level 1 40 | . 43 . Level 2 23 | . 25 . Level 3 . | . . . Level 4 . | . . . Level 5 . | . . . High Security . | . . . Max Security . | . . . Squads Dispatched 6 | . 6 . Investigation 4 | . 4 . Extermination . | . . . Reinforcement 2 | . 2 . Assault . | . . . Garrison . | . . . Intercept . | . . . Searches Triggered . | . . . Construction Impeded . | . . . Haulers Reinforced . | . . . Active Scanning Responses . | . . . Cargo Convoy Interrupts . | . . . Stealth | -11 -10 -10 --------- Run | Yrd Mat Sub Distress Signals 1 | . 1 . Communications Jammed . | . . . Distress Signals . | . . . Times Spotted 40 | . 28 12 Peak Tracking Total 6 | . 6 2 Tactical Retreats 1 | . 1 . Traps | -11 -10 -10 ------- Run | Yrd Mat Sub Traps Triggered 1 | . 1 . Indirectly . | . . . Trap Hack Attempts . | . . . Triggered . | . . . Disarmed . | . . . Reprogrammed . | . . . Reused . | . . . Traps Extracted . | . . . Installed . | . . . Triggered . | . . . Most Traps Carried 2 | . . 2 Machines | -11 -10 -10 ---------- Run | Yrd Mat Sub Machines Disabled 5 | . 5 . Max in Single Turn 2 | . 2 . Machines Repaired . | . . . Machines Dismantled . | . . . Machines Sabotaged . | . . . Overloaded Fab Kills . | . . . Hacking | -11 -10 -10 --------- Run | Yrd Mat Sub Machines Accessed 8 | . 7 1 Terminals 5 | . 5 . Fabricators . | . . . Repair Stations . | . . . Recycling Units 2 | . 2 . Scanalyzers . | . . . Garrison Access . | . . . Total Hacks 29 | . 24 5 Successful 18 | . 13 5 Failed 10 | . 10 . Catastrophic . | . . . Database Lockouts 1 | . 1 . Manual 20 | . 20 . Terminals 19 | . 19 . Fabricators . | . . . Repair Stations . | . . . Recycling Units 5 | . 5 . Scanalyzers . | . . . Garrison Access . | . . . Terminal Hacks 8 | . 3 5 Record 6 | . 1 5 Robot Analysis 2 | . 2 . Fabricator Hacks . | . . . Repair Station Hacks . | . . . Recycling Unit Hacks 2 | . 2 . Retrieve Components 2 | . 2 . Scanalyzer . | . . . Garrison Access Hacks . | . . . Unauthorized Hacks 8 | . 8 . Terminals 6 | . 6 . Assimilate 2 | . 2 . Botnet 4 | . 4 . Fabricators . | . . . Repair Stations . | . . . Recycling Units 2 | . 2 . Tunnel 2 | . 2 . Scanalyzers . | . . . Garrison Access . | . . . Data Cores Recovered . | . . . Used . | . . . Hacking Detections 6 | . 6 . Full Trace Events 2 | . 2 . Feedback Events . | . . . Feedback Blocked . | . . . Robot Schematics Acquired . | . . . Robots Built . | . . . Authchips . | . . . Time . | . . . Total Robot Build Rating . | . . . Part Schematics Acquired . | . . . Parts Built . | . . . Authchips . | . . . Time . | . . . Total Part Build Rating . | . . . Parts Repaired . | . . . Time . | . . . Parts Recycled . | . . . Recycled Matter . | . . . Retrieved Matter . | . . . Retrieved Components 18 | . 18 . Parts Scanalyzed . | . . . Part Schematics Acquired . | . . . Parts Damaged . | . . . Bothacking | -11 -10 -10 ------------ Run | Yrd Mat Sub Used RIF Installer . | . . . Robots Hacked . | . . . Non-combat . | . . . Combat . | . . . Robot Hacks Applied . | . . . Relay Couplers Released . | . . . Fabnet Peak Effective % . | . . . Robots Rewired . | . . . Allies Hacked . | . . . Hacks Repelled . | . . . Allies | -11 -10 -10 -------- Run | Yrd Mat Sub Total Allies . | . . . Largest Group . | . . . Highest-Rated Group . | . . . Highest-Rated Ally . | . . . Total Orders . | . . . Ally Attacks . | . . . Total Damage . | . . . Kills . | . . . Allies Corrupted . | . . . Allies Melted . | . . . Intel | -11 -10 -10 ------- Run | Yrd Mat Sub Robot Analysis Total 2 | . 2 . Derelict Logs Recovered 1 | . . 1 Drone Launches . | . . . Drone Recoveries . | . . . Exploration | -11 -10 -10 ------------- Run | Yrd Mat Sub Turns Passed 3757 | 117 2085 1555 Spaces Moved 2117 | 49 1045 1023 Core 3 | 2 1 . Treads 1091 | 47 1043 1 Legs . | . . . Wheels 1022 | . . 1022 Hover . | . . . Flight 1 | . 1 . Fastest Speed 50 | 50 160 115 Average Speed 153 | 155 173 132 Slowest Speed 550 | 160 550 240 Overloaded Moves . | . . . Propulsion Burnouts . | . . . Robots Hopped . | . . . Cave-ins Triggered . | . . . Exploration Rate (%) 52 | 5 97 56 Regions Visited 2 Branch Regions 1 Pre-discovered Areas 2 | . 2 . Known Exits Taken . | . . . Unknown Exits Taken 2 | 1 1 . Scrap Searched 2 | . . 2 Spaces Dug 10 | . 10 . Terrain Destroyed 202 | . 180 22 Melee . | . . . Projectile 2 | . . 2 AOE 200 | . 180 20 Terrain Rammed . | . . . Walls Destroyed . | . . . Machines Disabled . | . . . Actions | -11 -10 -10 --------- Run | Yrd Mat Sub Total 2390 | 68 1205 1117 Wait 60 | . 56 4 Move 2115 | 48 1044 1023 Hop . | . . . Pick Up 30 | 4 16 10 Fast Attach 19 | 7 7 5 Attach 9 | . 1 8 Detach 1 | . . 1 Swap 16 | . 11 5 Drop 12 | . 10 2 Fire 122 | 9 59 54 Melee 5 | . . 5 Ram . | . . . Kick . | . . . Crush 1 | . 1 . Escape Stasis . | . . . Rewire . | . . . Trap . | . . . Miscellaneous . | . . . Route ------- -11/Scrapyard -10/Materials (discovered 5 exits: [*Mat x3] / [*Min] / *Sub) -10/Subcaves History --------- Turn | Location | Event 21 | -11/Scrapyard | Discovered new exit (range 16) 118 | -11/Scrapyard | Entered Materials 310 | -10/Materials | Build established: Mutant 729 | -10/Materials | Discovered new exit (range 15) 1008 | -10/Materials | Discovered new exit (range 10) 1186 | -10/Materials | Discovered new exit (range 14) 1469 | -10/Materials | Discovered new exit (range 13) 1709 | -10/Materials | Central database locked down 1875 | -10/Materials | Discovered new exit (range 9) 2203 | -10/Materials | Entered Subcaves 2206 | -10/Subcaves | Shifting Twisted Machinery released Piercing Trap 2206 | -10/Subcaves | Ambushed by Subdwellers from Twisted Machinery 2257 | -10/Subcaves | Lost 6 parts (1p2n3w) 2287 | -10/Subcaves | Shifting Twisted Machinery released Battle Rifle 2393 | -10/Subcaves | Disturbed a concealed Subdweller 2399 | -10/Subcaves | Core integrity fell below 50% 2751 | -10/Subcaves | Learned Materials non-interactive machine intel 2891 | -10/Subcaves | Build established: Derelict-Mutant 3054 | -10/Subcaves | Core integrity fell below 20% 3088 | -10/Subcaves | Visited Clippyterm 3092 | -10/Subcaves | Learned Factory fabricator intel 3092 | -10/Subcaves | Learned Factory stockpile data 3326 | -10/Subcaves | Build established: Mutant 3754 | -10/Subcaves | Ambushed by Subdwellers from Twisted Machinery 3758 | -10/Subcaves | Destroyed by W7-FEU(R) with Subdweller Shrapnel Launcher Last Messages --------------- >>Record! "Finders Keepers" It looks like you're interested in reappropriating Complex 0b10 components, would you like help? Data stored: Factory stockpile data. >>Record! "Early Bird" It looks like you're searching for a worm, right? Don't bother with early when it comes to the Lifeworm, it's never early, but by some measures it might be just in time... >>Record "LRC-V1" It looks like you're REDACTED, I can suggest REDACTED and REDACTED. Also definitely avoid REDACTED. 03226_ 2C-LV1(R) destroyed. 03235_ Acquired 13 matter. 03237_ Acquired 3 matter. 03281_ RU-BGB(O) cries out in pain. 03281_ RU-BGB(O) destroyed. 03284_ Acquired 6 matter. 03351_ Acquired Wheel. 03352_ Acquired 10 matter. 03366_ Acquired Ion Engine. 03369_ Acquired Sub. Monowheel. 03448_ Sub. Power Source shoots sparks and powers down. 03533_ Subatomizers dissect the Sub. Optics. 03754_ U9-BXB(R) emerges from the Twisted Machinery. Map ----- +----------------------------------------------------+ | ?????????????????????????????????????????????????? | | ?????????????????????????????????????????????????? | | ?????????????????????????????????????????????????? | | ????????????????????????????????????????????????? | | ?????????????????????????????????????????????????# | | ?????????????????????????????????????????????????? | | ?????????????????????????????????????????????????? | | ?????????????????????????????????????????????????? | | ?????????????????????????????????????????????????# | | ?????????????????????????????????????????????????# | | ?????????????????????????????????????????????? | | ????????????????????????????????????????????? | | ????????????????????????????????????????????? ? | | ??????????????????????????????????###?????# ? ???? | | ?????????????????????????????????? ##??# #???? | | ????????????????????????????????? ??? #???? | | ?????????????????????????????????? ??? ####? | | ??????????????????????????????????# ??# ## | | ???????????????????????????????????# #??? | | ??????????????????????????????????## #??? | | ??????????????????????????????##### "#### #?# | | ????????????????????#???## ?#"## " ## #??## | | ???????????????????## ??#;;;;##"""" " #??# | | ???????????????????# ##; #"""""" "" #### | | ??????????????"" "### " """"""" # # | | ?????????????? "" @ " "" " | | ?????????????# " R # ## | | ?????????????##"" R ###### ###### #### | | ??????????????## #?????# #### ##????###??? | | ???????????????########??????###??#####??????????? | | ?????????????????????????????????????????????????? | | ?????????????????????????????????????????????????? | | ?????????????????????????????????????????????????? | | ?????????????????????????????????????????????????? | | ?????????????????????????????????????????????????? | | ?????????????????????????????????????????????????? | | ?????????????????????????????????????????????????? | | ?????????????????????????????????????????????????? | | ?????????????????????????????????????????????????? | | ?????????????????????????????????????????????????? | | ?????????????????????????????????????????????????? | | ?????????????????????????????????????????????????? | | ?????????????????????????????????????????????????? | | ?????????????????????????????????????????????????? | | | | | | | | | | | | | +----------------------------------------------------+ Best States ------------- Heat Dissipation 25 Energy Generation 15 Energy Capacity 250 Matter Stores 300 Matter Capacity 300 Sight Range 16 Terrain Scan Range 16 Terrain Scan Density 10 Armor Coverage 150 Evasion (%) 40 Recoil Reduction 2 Item Schematics ----------------- None Robot Schematics ------------------ None Fabricated ------------ Nothing Alien Tech Used ----------------- None Achievements -------------- None Challenges ------------ None Game ------ Seed MinesnifferSensorScrapsphere Manual? 0 Play Time 00:20:09 Cumulative 31.7 hours Start 2024.11.09 @ 13:07:51 End 2024.11.09 @ 13:25:13 Sessions 1 Manual Loads 0 Difficulty Rogue Special Mode None Game No. 68 Rogue 68 Adventurer 0 Explorer 0 Win Type - Total 0 Types 0/0/0/0/0/0/0/0/0 Lore% 29 Gallery% 26 Achievement% 28 Wizard Run 0 Options --------- Layout 0 ASCII 0 Keyboard 0 Movement Mouse Keybinds 0 Fullscreen 1 Font 24/Smallcaps Map View 91x25 Zoom Use 67% Tactical HUD 1 Map Filters NONE Filters NONE Steam 1 RUN: ff0b3224-bb21-4d0d-9118-2ab3d6590cb2